lending/lending_fUSD_20250808
["ID","MTS","AMOUNT","RATE_DAILY","PERIOD"]
[377954709,1754626284623,-400.0,0.00020256,2]
[377954710,1754626284634,-400.0,0.00020256,2]
[377954711,1754626284645,-400.0,0.00020256,2]
[377954712,1754626284656,-400.0,0.00020256,2]
[377954713,1754626284668,-520.94,0.00020256,2]
[377954714,1754626284680,-877.46,0.00020256,2]
[377954715,1754626284692,-723.85,0.00020256,2]
[377954716,1754626284703,-644.54,0.00020256,2]
[377954717,1754626284715,-632.95,0.00020256,2]
[377954718,1754626284726,-400.0,0.00020256,2]
[377954719,1754626284739,-833.93,0.00020256,2]
[377954720,1754626284753,-767.52,0.00020256,2]
[377954721,1754626284766,-400.0,0.00020256,2]
[377954722,1754626284778,-400.0,0.00020256,2]
[377954723,1754626284790,-400.0,0.00020256,2]
[377954724,1754626284802,-771.81,0.00020256,2]
[377954725,1754626284815,-686.78,0.00020256,2]
[377954726,1754626284827,-400.0,0.00020256,2]
[377954727,1754626284839,-655.46,0.00020256,2]
[377954728,1754626284851,-400.0,0.00020256,2]
[377954729,1754626284863,-400.0,0.00020256,2]
[377954730,1754626284875,-924.55,0.00020256,2]
[377954731,1754626284887,-400.0,0.00020256,2]
[377954732,1754626284899,-400.0,0.00020256,2]
[377954733,1754626284913,-460.64,0.00020256,2]
[377954734,1754626284925,-400.0,0.00020256,2]
[377954735,1754626284937,-701.53,0.00020256,2]
[377954736,1754626284948,-400.0,0.00020256,2]
[377954737,1754626284960,-400.0,0.00020256,2]
[377954738,1754626284972,-400.0,0.00020256,2]
[377954739,1754626284984,-400.0,0.00020256,2]
[377954740,1754626284996,-1157.87,0.00020256,2]
[377954741,1754626285007,-400.0,0.00020256,2]
[377954742,1754626285019,-688.94,0.00020256,2]
[377954743,1754626285031,-443.7,0.00020256,2]
[377954744,1754626285043,-400.0,0.00020256,2]
[377954745,1754626285054,-400.0,0.00020256,2]
[377954746,1754626285065,-400.0,0.00020256,2]
[377954747,1754626285077,-400.0,0.00020256,2]
[377954748,1754626285088,-650.63,0.00020256,2]
[377954749,1754626285100,-400.0,0.00020256,2]
[377954750,1754626285112,-400.0,0.00020256,2]
[377954751,1754626285123,-577.57,0.00020256,2]
[377954752,1754626285135,-400.0,0.00020256,2]
[377954753,1754626285146,-775.03,0.00020256,2]
[377954754,1754626285158,-1098.43,0.00020256,2]
[377954755,1754626285169,-400.0,0.00020256,2]
[377954756,1754626285180,-618.38,0.00020256,2]
[377954757,1754626285192,-400.0,0.00020256,2]
[377954758,1754626285204,-841.9,0.00020256,2]
[377954759,1754626285217,-434.74,0.00020256,2]
[377954760,1754626285228,-400.0,0.00020256,2]
[377954761,1754626285239,-400.0,0.00020256,2]
[377954762,1754626285252,-1340.04,0.00020256,2]
[377954763,1754626285263,-400.0,0.00020256,2]
[377954764,1754626285275,-636.11,0.00020256,2]
[377954765,1754626285286,-400.0,0.00020256,2]
[377954766,1754626285297,-493.23,0.00020256,2]
[377954767,1754626285309,-1568.15,0.00020256,2]
[377954768,1754626285320,-226.54591534,0.00020256,2]
[377954769,1754626285332,-400.0,0.00020256,2]
[377954770,1754626285343,-1823.15,0.00020256,2]
[377954771,1754626285355,-400.0,0.00020256,2]
[377954772,1754626285367,-2170.08,0.00020256,2]
[377954773,1754626285378,-400.0,0.00020256,2]
[377954774,1754626285389,-701.28,0.00020256,2]
[377954775,1754626285400,-400.0,0.00020256,2]
[377954776,1754626285816,-606.4,0.00020256,2]
[377954777,1754626285833,-737.08,0.00020256,2]
[377954778,1754626285843,-584.73,0.00020256,2]
[377954779,1754626285853,-481.92,0.00020256,2]
[377954780,1754626285862,-419.61,0.00020256,2]
[377954781,1754626285873,-400.0,0.00020256,2]
[377954782,1754626285882,-400.0,0.00020256,2]
[377954783,1754626285892,-400.0,0.00020256,2]
[377954784,1754626285901,-1041.24,0.00020256,2]
[377954785,1754626285912,-895.39,0.00020256,2]
[377954786,1754626285923,-450.17,0.00020256,2]
[377954787,1754626285933,-736.83,0.00020256,2]
[377954788,1754626285942,-400.0,0.00020256,2]
[377954789,1754626285951,-400.0,0.00020256,2]
[377954790,1754626285962,-1388.68,0.00020256,2]
[377954791,1754626285971,-404.77,0.00020256,2]
[377954792,1754626285981,-726.4,0.00020256,2]
[377954793,1754626285992,-1109.46,0.00020256,2]
[377954794,1754626286002,-434.65,0.00020256,2]
[377954795,1754626286012,-1391.01,0.00020256,2]
[377954796,1754626286022,-962.32,0.00020256,2]
[377954797,1754626286031,-866.44,0.00020256,2]
[377954798,1754626286040,-400.0,0.00020256,2]
[377954799,1754626286050,-714.0,0.00020256,2]
[377954800,1754626286060,-400.0,0.00020256,2]
[377954801,1754626286069,-715.91,0.00020256,2]
[377954802,1754626286080,-400.0,0.00020256,2]
[377954803,1754626286090,-1033.08,0.00020256,2]
[377954804,1754626286100,-812.69,0.00020256,2]
[377954805,1754626286110,-1441.14,0.00020256,2]
[377954806,1754626286120,-400.0,0.00020256,2]
[377954807,1754626286130,-654.63,0.00020256,2]
[377954808,1754626286139,-705.25,0.00020256,2]
[377954809,1754626286149,-852.53,0.00020256,2]
[377954810,1754626286159,-797.14,0.00020256,2]
[377954811,1754626286168,-1115.11,0.00020256,2]
[377954812,1754626286178,-400.0,0.00020256,2]
[377954813,1754626286187,-400.0,0.00020256,2]
[377954814,1754626286197,-401.75,0.00020256,2]
[377954815,1754626286208,-796.7,0.00020256,2]
[377954816,1754626286217,-1347.39,0.00020256,2]
[377954817,1754626286226,-457.46,0.00020256,2]
[377954818,1754626286235,-407.39,0.00020256,2]
[377954819,1754626286244,-673.14,0.00020256,2]
[377954820,1754626286253,-1822.34,0.00020256,2]
[377954821,1754626286263,-1270.48,0.00020256,2]
[377954822,1754626286273,-400.0,0.00020256,2]
[377954823,1754626286282,-400.0,0.00020256,2]
[377954824,1754626286291,-400.0,0.00020256,2]
[377954825,1754626286301,-1002.76,0.00020256,2]
[377954826,1754626286310,-644.35,0.00020256,2]
[377954827,1754626286320,-409.25,0.00020256,2]
[377954828,1754626286329,-890.13,0.00020256,2]
[377954829,1754626286338,-1245.67,0.00020256,2]
[377954830,1754626286347,-2043.21,0.00020256,2]
[377954831,1754626286357,-400.0,0.00020256,2]
[377954832,1754626286366,-2233.71,0.00020256,2]
[377954833,1754626286376,-741.24,0.00020256,2]
[377954834,1754626286385,-1155.63,0.00020256,2]
[377954835,1754626286394,-400.0,0.00020256,2]
[377954836,1754626286403,-1047.2,0.00020256,2]
[377954837,1754626286412,-514.46,0.00020256,2]
[377954838,1754626286421,-489.77,0.00020256,2]
[377954839,1754626286430,-400.0,0.00020256,2]
[377954840,1754626286439,-193.5442275,0.00020256,2]
[377954841,1754626286448,-695.7,0.00020256,2]
[377954842,1754626286458,-426.22,0.00020256,2]
[377954843,1754626286467,-400.0,0.00020256,2]
[377954844,1754626286476,-400.0,0.00020256,2]
[377954845,1754626286485,-637.06,0.00020256,2]
[377954846,1754626286494,-555.42,0.00020256,2]
[377954847,1754626286503,-400.0,0.00020256,2]
[377954848,1754626286513,-423.0,0.00020256,2]
[377954849,1754626286522,-1209.56,0.00020256,2]
[377954850,1754626286532,-469.28,0.00020256,2]
[377954851,1754626286541,-896.1,0.00020256,2]
[377954852,1754626286550,-400.0,0.00020256,2]
[377954853,1754626286559,-400.0,0.00020256,2]
[377954854,1754626286568,-400.0,0.00020256,2]
[377954855,1754626286578,-400.0,0.00020257,2]
[377954856,1754626286587,-400.0,0.00020257,2]
[377954857,1754626286596,-714.82,0.00020257,2]
[377954858,1754626286605,-400.0,0.00020257,2]
[377954859,1754626286614,-559.3,0.00020257,2]
[377954860,1754626286623,-461.32,0.00020257,2]
[377954861,1754626286632,-400.0,0.00020257,2]
[377954862,1754626286641,-667.25,0.00020257,2]
[377954863,1754626286655,-400.0,0.00020257,2]
[377954864,1754626286664,-835.61,0.00020257,2]
[377954865,1754626286673,-400.0,0.00020257,2]
[377954866,1754626286682,-646.3,0.00020257,2]
[377954867,1754626286692,-400.0,0.00020257,2]
[377954868,1754626286701,-171.56981487,0.00020257,2]
[377954869,1754626286710,-508.98,0.00020257,2]
[377954870,1754626286719,-561.42,0.00020257,2]
[377954871,1754626286729,-400.0,0.00020257,2]
[377954872,1754626286739,-400.0,0.00020257,2]
[377954873,1754626286748,-490.6,0.00020257,2]
[377954874,1754626286758,-400.0,0.00020257,2]
[377954875,1754626286767,-400.0,0.00020257,2]
[377954876,1754626286777,-709.98,0.00020257,2]
[377954877,1754626286786,-777.73,0.00020257,2]
[377954878,1754626286795,-400.0,0.00020257,2]
[377954879,1754626286805,-520.41,0.00020257,2]
[377954880,1754626286814,-517.16,0.00020257,2]
[377954881,1754626286823,-400.0,0.00020257,2]
[377954882,1754626286832,-774.37,0.00020257,2]
[377954883,1754626286842,-745.25,0.00020257,2]
[377954884,1754626286851,-680.99,0.00020257,2]
[377954885,1754626286862,-400.0,0.00020257,2]
[377954886,1754626286871,-400.0,0.00020257,2]
[377954887,1754626286881,-400.0,0.00020257,2]
[377954888,1754626286891,-400.0,0.00020257,2]
[377954889,1754626286900,-400.0,0.00020257,2]
[377954890,1754626286915,-400.0,0.00020257,2]
[377954891,1754626286924,-352.42247643,0.00020257,2]
[377954892,1754626286934,-212.76820486,0.00020257,2]
[377954893,1754626286943,-654.32,0.00020257,2]
[377954894,1754626286954,-475.66,0.00020257,2]
[377954895,1754626286963,-400.0,0.00020257,2]
[377954896,1754626286972,-400.0,0.00020257,2]
[377954897,1754626286981,-661.22,0.00020257,2]
[377954898,1754626286992,-461.62,0.00020257,2]
[377954899,1754626287001,-546.3,0.00020257,2]
[377954900,1754626287010,-792.57,0.00020257,2]
[377954901,1754626287019,-493.31,0.00020257,2]
[377954902,1754626287028,-580.1,0.00020257,2]
[377954903,1754626287037,-400.0,0.00020257,2]
[377954904,1754626287046,-431.68,0.00020257,2]
[377954905,1754626287055,-400.0,0.00020257,2]
[377954906,1754626287065,-762.35,0.00020257,2]
[377954907,1754626287074,-404.32,0.00020257,2]
[377954908,1754626287083,-400.0,0.00020257,2]
[377954909,1754626287093,-400.0,0.00020257,2]
[377954910,1754626287102,-400.0,0.00020257,2]
[377954911,1754626287111,-409.42,0.00020257,2]
[377954912,1754626287120,-343.91547292,0.00020257,2]
[377954913,1754626287130,-400.0,0.00020257,2]
[377954914,1754626287139,-881.9,0.00020257,2]
[377954915,1754626287148,-400.0,0.00020257,2]
[377954916,1754626287158,-402.69,0.00020257,2]
[377954917,1754626287167,-708.23,0.00020257,2]
[377954918,1754626287176,-400.0,0.00020257,2]
[377954919,1754626287186,-457.97,0.00020257,2]
[377954920,1754626287196,-1153.5,0.00020257,2]
[377954921,1754626287210,-400.0,0.00020257,2]
[377954922,1754626287219,-427.35,0.00020257,2]
[377954923,1754626287230,-400.0,0.00020257,2]
[377954924,1754626287239,-388.84479548,0.00020257,2]
[377954925,1754626287248,-400.0,0.00020257,2]
[377954926,1754626287257,-753.04,0.00020257,2]
[377954927,1754626287268,-1025.45,0.00020257,2]
[377954928,1754626287278,-400.0,0.00020257,2]
[377954929,1754626287290,-400.0,0.00020257,2]
[377954930,1754626287299,-400.0,0.00020257,2]
[377954931,1754626287309,-639.19,0.00020257,2]
[377954932,1754626287318,-400.0,0.00020257,2]
[377954933,1754626287327,-400.0,0.00020257,2]
[377954934,1754626287336,-485.3230944,0.00020257,2]
[377954935,1754626287345,-400.0,0.00020257,2]
[377954936,1754626287354,-400.0,0.00020257,2]
[377954937,1754626287364,-516.92,0.00020257,2]
[377954938,1754626287374,-595.18,0.00020257,2]
[377954939,1754626287384,-1035.95,0.00020257,2]
[377954940,1754626287394,-779.19,0.00020257,2]
[377954941,1754626287404,-400.0,0.00020257,2]
[377954942,1754626287414,-400.0,0.00020257,2]
[377954943,1754626287423,-400.0,0.00020257,2]
[377954944,1754626287434,-400.0,0.00020257,2]
[377954945,1754626287443,-1327.47,0.00020257,2]
[377954946,1754626287453,-400.0,0.00020257,2]
[377954947,1754626287462,-984.12,0.00020257,2]
[377954948,1754626287472,-400.0,0.00020257,2]
[377954949,1754626287482,-400.0,0.00020257,2]
[377954950,1754626287491,-667.27,0.00020257,2]
[377954951,1754626287501,-400.0,0.00020257,2]
[377954952,1754626287510,-400.0,0.00020257,2]
[377954953,1754626287519,-656.52,0.00020257,2]
[377954954,1754626287528,-413.21,0.00020257,2]
[377954955,1754626287537,-400.0,0.00020257,2]
[377954956,1754626287546,-400.0,0.00020257,2]
[377954957,1754626287556,-611.55,0.00020257,2]
[377954958,1754626287565,-619.46,0.00020257,2]
[377954959,1754626287575,-1041.04,0.00020257,2]
[377954960,1754626287585,-927.35,0.00020257,2]
[377954961,1754626287594,-400.0,0.00020257,2]
[377954962,1754626287603,-642.29,0.00020257,2]
[377954963,1754626287612,-450.11,0.00020257,2]
[377954964,1754626287621,-400.0,0.00020257,2]
[377954965,1754626287630,-400.0,0.00020257,2]
[377954966,1754626287640,-400.0,0.00020257,2]
[377954967,1754626287650,-637.14,0.00020257,2]
[377954968,1754626287660,-400.0,0.00020257,2]
[377954969,1754626287670,-400.0,0.00020257,2]
[377954970,1754626287679,-400.0,0.00020257,2]
[377954971,1754626287688,-536.07614214,0.00020257,2]
[377954972,1754626287698,-493.46,0.00020257,2]
[377954973,1754626287707,-400.0,0.00020257,2]
[377954974,1754626287716,-429.69,0.00020257,2]
[377954975,1754626287725,-421.71,0.00020257,2]
[377954976,1754626287735,-400.0,0.00020257,2]
[377954977,1754626287745,-156.59696605,0.00020257,2]
[377954978,1754626288319,-361.06303395,0.00020257,2]
[377954979,1754626288328,-400.0,0.00020257,2]
[377954980,1754626288339,-400.0,0.00020257,2]
[377954981,1754626288348,-465.15,0.00020257,2]
[377954982,1754626288358,-400.0,0.00020257,2]
[377954983,1754626288367,-678.98,0.00020257,2]
[377954984,1754626288376,-1384.81,0.00020257,2]
[377954985,1754626288385,-996.67,0.00020257,2]
[377954986,1754626288394,-571.51,0.00020257,2]
[377954987,1754626288404,-400.0,0.00020257,2]
[377954988,1754626288413,-722.09,0.00020257,2]
[377954989,1754626288422,-400.0,0.00020257,2]
[377954990,1754626288431,-593.69,0.00020257,2]
[377954991,1754626288441,-400.0,0.00020257,2]
[377954992,1754626288450,-400.0,0.00020257,2]
[377954993,1754626288460,-1728.68,0.00020257,2]
[377954994,1754626288469,-400.0,0.00020257,2]
[377954995,1754626288478,-400.0,0.00020257,2]
[377954996,1754626288487,-715.63,0.00020257,2]
[377954997,1754626288496,-400.0,0.00020257,2]
[377954998,1754626288506,-400.0,0.00020257,2]
[377954999,1754626288516,-462.96780781,0.00020257,2]
[377955000,1754626288525,-42.18510453,0.00020257,2]
[377955001,1754626288635,209.26,0.00018873,2]
[377955002,1754626288892,-599.72489547,0.00020257,2]
[377955003,1754626288902,-891.24,0.00020257,2]
[377955004,1754626288912,-400.0,0.00020257,2]
[377955005,1754626288925,-406.1,0.00020257,2]
[377955006,1754626288934,-934.46,0.00020257,2]
[377955007,1754626288944,-934.12,0.00020257,2]
[377955008,1754626288954,-400.0,0.00020257,2]
[377955009,1754626288964,-670.4,0.00020257,2]
[377955010,1754626288974,-674.87,0.00020257,2]
[377955011,1754626288984,-1307.54,0.00020257,2]
[377955012,1754626288994,-400.0,0.00020257,2]
[377955013,1754626289211,-804.47,0.00020257,2]
[377955014,1754626289221,-400.0,0.00020257,2]
[377955015,1754626289230,-510.06,0.00020257,2]
[377955016,1754626289240,-937.03,0.00020257,2]
[377955017,1754626289249,-812.93,0.00020257,2]
[377955018,1754626289258,-861.49,0.00020257,2]
[377955019,1754626289267,-400.0,0.00020257,2]
[377955020,1754626289277,-400.0,0.00020257,2]
[377955021,1754626289286,-400.0,0.00020257,2]
[377955022,1754626289296,-552.22,0.00020257,2]
[377955023,1754626289305,-400.0,0.00020257,2]
[377955024,1754626289315,-486.11,0.00020257,2]
[377955025,1754626289325,-1786.72,0.00020257,2]
[377955026,1754626289334,-606.4,0.00020257,2]
[377955027,1754626289343,-810.48,0.00020257,2]
[377955028,1754626289353,-400.0,0.00020257,2]
[377955029,1754626289362,-809.54,0.00020257,2]
[377955030,1754626289373,-911.31,0.00020257,2]
[377955031,1754626289382,-437.41,0.00020257,2]
[377955032,1754626289391,-934.15,0.00020257,2]
[377955033,1754626289400,-992.26,0.00020257,2]
[377955034,1754626289410,-775.57,0.00020257,2]
[377955035,1754626289419,-400.0,0.00020257,2]
[377955036,1754626289428,-451.59,0.00020257,2]
[377955037,1754626289438,-1104.9,0.00020257,2]
[377955038,1754626289447,-400.0,0.00020257,2]
[377955039,1754626289456,-400.0,0.00020257,2]
[377955040,1754626289466,-400.0,0.00020257,2]
[377955041,1754626289476,-703.85,0.00020257,2]
[377955042,1754626289485,-734.03,0.00020257,2]
[377955043,1754626289494,-759.22,0.00020257,2]
[377955044,1754626289503,-618.57,0.00020257,2]
[377955045,1754626289513,-670.41,0.00020257,2]
[377955046,1754626289522,-985.82,0.00020257,2]
[377955047,1754626289531,-549.5,0.00020257,2]
[377955048,1754626289540,-582.68,0.00020257,2]
[377955049,1754626289550,-400.0,0.00020257,2]
[377955050,1754626289559,-555.26,0.00020257,2]
[377955051,1754626289568,-1182.91,0.00020257,2]
[377955052,1754626289577,-443.35,0.00020257,2]
[377955053,1754626289587,-836.26,0.00020257,2]
[377955054,1754626289596,-400.0,0.00020257,2]
[377955055,1754626289605,-489.93,0.00020257,2]
[377955056,1754626289614,-400.0,0.00020257,2]
[377955057,1754626289624,-400.0,0.00020257,2]
[377955058,1754626289633,-986.57,0.00020257,2]
[377955059,1754626289642,-400.0,0.00020257,2]
[377955060,1754626289652,-477.62,0.00020257,2]
[377955061,1754626289661,-506.93,0.00020257,2]
[377955062,1754626289672,-853.89,0.00020257,2]
[377955063,1754626289681,-735.98,0.00020257,2]
[377955064,1754626289691,-400.0,0.00020257,2]
[377955065,1754626289700,-400.0,0.00020257,2]
[377955066,1754626289709,-444.13,0.00020257,2]
[377955067,1754626289718,-400.0,0.00020257,2]
[377955068,1754626289727,-400.0,0.00020257,2]
[377955069,1754626289736,-809.01,0.00020257,2]
[377955070,1754626289746,-409.63,0.00020257,2]
[377955071,1754626289756,-420.03,0.00020257,2]
[377955072,1754626289766,-1202.24,0.00020257,2]
[377955073,1754626289775,-1244.59,0.00020257,2]
[377955074,1754626289785,-477.58,0.00020257,2]
[377955075,1754626289795,-667.42,0.00020257,2]
[377955076,1754626289804,-536.9,0.00020257,2]
[377955077,1754626289813,-425.93,0.00020257,2]
[377955078,1754626289823,-400.19,0.00020257,2]
[377955079,1754626289833,-400.0,0.00020257,2]
[377955080,1754626289845,-1284.7,0.00020257,2]
[377955081,1754626289854,-775.37,0.00020257,2]
[377955082,1754626289863,-1151.55,0.00020257,2]
[377955083,1754626289874,-400.0,0.00020257,2]
[377955084,1754626289883,-400.0,0.00020257,2]
[377955085,1754626289892,-534.03,0.00020257,2]
[377955086,1754626289902,-1784.76,0.00020257,2]
[377955087,1754626289916,-538.24,0.00020257,2]
[377955088,1754626289925,-465.41,0.00020257,2]
[377955089,1754626289935,-585.27,0.00020257,2]
[377955090,1754626289944,-400.0,0.00020257,2]
[377955091,1754626289955,-400.0,0.00020257,2]
[377955092,1754626289964,-727.75,0.00020257,2]
[377955093,1754626289974,-576.73,0.00020257,2]
[377955094,1754626289984,-753.91,0.00020257,2]
[377955095,1754626289994,-400.0,0.00020257,2]
[377955096,1754626290004,-510.17,0.00020257,2]
[377955097,1754626290013,-814.66,0.00020257,2]
[377955098,1754626290023,-400.0,0.00020257,2]
[377955099,1754626290031,-417.82,0.00020257,2]
[377955100,1754626290041,-1488.58,0.00020257,2]
[377955101,1754626290050,-1282.89,0.00020257,2]
[377955102,1754626290060,-945.35,0.00020257,2]
[377955103,1754626290069,-400.0,0.00020257,2]
[377955104,1754626290079,-589.45,0.00020257,2]
[377955105,1754626290089,-413.86,0.00020257,2]
[377955106,1754626290098,-400.0,0.00020257,2]
[377955107,1754626290107,-400.0,0.00020257,2]
[377955108,1754626290116,-400.0,0.00020257,2]
[377955109,1754626290127,-1386.59,0.00020257,2]
[377955110,1754626290136,-848.67,0.00020257,2]
[377955111,1754626290145,-400.0,0.00020257,2]
[377955112,1754626290155,-400.0,0.00020257,2]
[377955113,1754626290164,-1078.51,0.00020257,2]
[377955114,1754626290173,-1156.26,0.00020257,2]
[377955115,1754626290183,-764.62,0.00020257,2]
[377955116,1754626290192,-400.0,0.00020257,2]
[377955117,1754626290202,-497.98,0.00020257,2]
[377955118,1754626290212,-400.0,0.00020257,2]
[377955119,1754626290222,-400.0,0.00020257,2]
[377955120,1754626290232,-853.67,0.00020257,2]
[377955121,1754626290241,-1273.55,0.00020257,2]
[377955122,1754626290251,-400.0,0.00020257,2]
[377955123,1754626290260,-400.0,0.00020257,2]
[377955124,1754626290270,-1298.91,0.00020257,2]
[377955125,1754626290279,-132.48098388,0.00020257,2]
[377955126,1754626290456,-267.51901612,0.00020257,2]
[377955127,1754626290465,-27.13399509,0.00020257,2]
[377955128,1754626290516,209.26,0.00018873,2]
[377955129,1754626290678,110.48,0.00018886,2]
[377955130,1754626290699,142.82203795,0.00018886,2]
[377955131,1754626291016,400.0,0.00018887,2]
[377955132,1754626291029,-440.65600491,0.00020257,2]
[377955133,1754626291039,-400.0,0.00020257,2]
[377955134,1754626291048,-502.18066882,0.00020257,2]
[377955135,1754626291067,-639.29851046,0.00020257,2]
[377955136,1754626291078,-242.26082072,0.00020257,2]
[377955137,1754626291088,-260.23829928,0.00020257,2]
[377955138,1754626291103,-651.29170072,0.00020257,2]
[377955139,1754626291112,-400.0,0.00020257,2]
[377955140,1754626291121,-856.18,0.00020257,2]
[377955141,1754626291131,-1126.68,0.00020257,2]
[377955142,1754626291140,-874.75,0.00020257,2]
[377955143,1754626291149,-828.88,0.00020257,2]
[377955144,1754626291158,-484.52,0.00020257,2]
[377955145,1754626291167,-400.0,0.00020257,2]
[377955146,1754626291177,-790.9,0.00020257,2]
[377955147,1754626291187,-612.6,0.00020257,2]
[377955148,1754626291198,-1042.45,0.00020257,2]
[377955149,1754626291209,-884.96,0.00020257,2]
[377955150,1754626291219,-400.0,0.00020257,2]
[377955151,1754626291229,-400.0,0.00020257,2]
[377955152,1754626291239,-1229.15,0.00020257,2]
[377955153,1754626291250,-796.87,0.00020257,2]
[377955154,1754626291259,-832.99,0.00020257,2]
[377955155,1754626291269,-615.05216907,0.00020257,2]
[377955156,1754626291293,-400.0,0.00019161,2]
[377955157,1754626291302,-227.98783093,0.00020257,2]
[377955158,1754626291311,-400.0,0.00020257,2]
[377955159,1754626291320,-994.14,0.00020257,2]
[377955160,1754626291329,-400.0,0.00020257,2]
[377955161,1754626291338,-400.0,0.00020257,2]
[377955162,1754626291347,-1122.85,0.00020257,2]
[377955163,1754626291356,-400.0,0.00020257,2]
[377955164,1754626291366,-401.13,0.00020257,2]
[377955165,1754626291450,-254.2686106,0.00020257,2]
[377955166,1754626291462,-735.6713894,0.00020257,2]
[377955167,1754626291471,-456.89,0.00020257,2]
[377955168,1754626291480,-400.0,0.00020257,2]
[377955169,1754626291490,-1077.94,0.00020257,2]
[377955170,1754626291501,-483.29,0.00020257,2]
[377955171,1754626291510,-711.37,0.00020257,2]
[377955172,1754626291519,-737.86,0.00020257,2]
[377955173,1754626291528,-489.42,0.00020257,2]
[377955174,1754626291537,-1186.63,0.00020257,2]
[377955175,1754626291547,-840.07,0.00020257,2]
[377955176,1754626291556,-1405.89,0.00020257,2]
[377955177,1754626291566,-868.16,0.00020257,2]
[377955178,1754626291575,-400.0,0.00020257,2]
[377955179,1754626291585,-624.03,0.00020257,2]
[377955180,1754626291594,-583.58,0.00020257,2]
[377955181,1754626291604,-400.0,0.00020257,2]
[377955182,1754626291613,-400.0,0.00020257,2]
[377955183,1754626291622,-726.17,0.00020257,2]
[377955184,1754626291631,-782.71,0.00020257,2]
[377955185,1754626291640,-666.65,0.00020257,2]
[377955186,1754626291649,-1193.78,0.00020257,2]
[377955187,1754626291658,-400.0,0.00020257,2]
[377955188,1754626291668,-1539.75,0.00020257,2]
[377955189,1754626291677,-871.27,0.00020257,2]
[377955190,1754626291686,-607.63,0.00020257,2]
[377955191,1754626291695,-400.0,0.00020257,2]
[377955192,1754626291704,-400.0,0.00020257,2]
[377955193,1754626291713,-777.45,0.00020257,2]
[377955194,1754626291723,-400.0,0.00020257,2]
[377955195,1754626291732,-400.0,0.00020257,2]
[377955196,1754626291742,-400.37,0.00020257,2]
[377955197,1754626291752,-738.12,0.00020257,2]
[377955198,1754626291761,-400.0,0.00020257,2]
[377955199,1754626291771,-427.97,0.00020257,2]
[377955200,1754626291780,-400.0,0.00020257,2]
[377955201,1754626291790,-835.79,0.00020257,2]
[377955202,1754626291799,-1120.32,0.00020257,2]
[377955203,1754626291808,-786.29,0.00020257,2]
[377955204,1754626291818,-693.04,0.00020257,2]
[377955205,1754626291827,-667.91,0.00020257,2]
[377955206,1754626291837,-400.0,0.00020257,2]
[377955207,1754626291847,-1412.23,0.00020257,2]
[377955208,1754626291856,-865.97,0.00020257,2]